[Event "Titled Tuesday Blitz May 2 Early 2023"]
[White "Ciuffoletti, Paolo"]
[Black "Rodriguez Santiago, Jaime"]
[WhiteFideId "807630"]
[BlackFideId "3100898"]
[WhiteElo "2143"]
[BlackElo "2025"]
[Result "1-0"]
[Round "10"]
[TimeControl "180+2"]
[Date "2023.05.03"]
[WhiteClock "0:00:00"]
[BlackClock "0:00:00"]

1. e4 {[%clk 0:00:01]}  c6 {[%clk 0:00:01]} 2. d4 {[%clk 0:00:01]}  d5 {[%clk 0:00:01]} 3. exd5 {[%clk 0:00:01]}  cxd5 {[%clk 0:00:01]} 4. c4 {[%clk 0:00:01]}  e6 {[%clk 0:00:01]} 5. Nc3 {[%clk 0:00:01]}  Nf6 {[%clk 0:00:01]} 6. Nf3 {[%clk 0:00:01]}  Be7 {[%clk 0:00:01]} 7. cxd5 {[%clk 0:00:01]}  Nxd5 {[%clk 0:00:01]} 8. Bd3 {[%clk 0:00:01]}  Nxc3 {[%clk 0:00:01]} 9. bxc3 {[%clk 0:00:01]}  Qc7 {[%clk 0:00:01]} 10. O-O {[%clk 0:00:01]}  O-O {[%clk 0:00:01]} 11. Ne5 {[%clk 0:00:01]}  Nd7 {[%clk 0:00:01]} 12. Bf4 {[%clk 0:00:01]}  Nxe5 {[%clk 0:00:01]} 13. Bxe5 {[%clk 0:00:01]}  Bd6 {[%clk 0:00:01]} 14. Qe2 {[%clk 0:00:00]}  Bxe5 {[%clk 0:00:01]} 15. dxe5 {[%clk 0:00:00]}  Qxc3 {[%clk 0:00:01]} 16. Rac1 {[%clk 0:00:00]}  Qd4 {[%clk 0:00:01]} 17. Rfd1 {[%clk 0:00:00]}  Qh4 {[%clk 0:00:01]} 18. g3 {[%clk 0:00:00]}  Qh3 {[%clk 0:00:01]} 19. Be4 {[%clk 0:00:00]}  Rb8 {[%clk 0:00:01]} 20. Rc7 {[%clk 0:00:00]}  a5 {[%clk 0:00:00]} 21. Qb5 {[%clk 0:00:00]}  b6 {[%clk 0:00:00]} 22. Bg2 {[%clk 0:00:00]}  Qh5 {[%clk 0:00:00]} 23. Rd6 {[%clk 0:00:00]}  h6 {[%clk 0:00:00]} 24. h3 {[%clk 0:00:00]}  Qf5 {[%clk 0:00:00]} 25. Re7 {[%clk 0:00:00]}  Qc2 {[%clk 0:00:00]} 26. Re8 {[%clk 0:00:00]}  Ba6 {[%clk 0:00:00]} 27. Rxf8+ {[%clk 0:00:00]}  Rxf8 {[%clk 0:00:00]} 28. Qxa6 {[%clk 0:00:00]}  Qxa2 {[%clk 0:00:00]} 29. Qxb6 {[%clk 0:00:00]}  a4 {[%clk 0:00:00]} 30. Rd8 {[%clk 0:00:00]}  Rxd8 {[%clk 0:00:00]} 31. Qxd8+ {[%clk 0:00:00]}  Kh7 {[%clk 0:00:00]} 32. Qe7 {[%clk 0:00:00]}  Qa1+ {[%clk 0:00:00]} 33. Kh2 {[%clk 0:00:00]}  Qxe5 {[%clk 0:00:00]} 34. Qxf7 {[%clk 0:00:00]}  a3 {[%clk 0:00:00]} 35. Qa7 {[%clk 0:00:00]}  Qe2 {[%clk 0:00:00]} 36. Qxa3 {[%clk 0:00:00]}  Qxf2 {[%clk 0:00:00]} 37. Qd3+ {[%clk 0:00:00]}  Kg8 {[%clk 0:00:00]} 38. Qd7 {[%clk 0:00:00]}  Qf5 {[%clk 0:00:00]} 39. Qd4 {[%clk 0:00:00]}  Qf2 {[%clk 0:00:00]} 40. Qxf2 {[%clk 0:00:00]} 1-0


[Site "https://www.chess.com"]

[Event "Titled Tuesday Blitz May 2 Early 2023"]
[White "Srdanovic, Jovana"]
[Black "Kopacz, Grzegorz"]
[WhiteFideId "954810"]
[BlackFideId "1109880"]
[WhiteElo "2145"]
[BlackElo "2037"]
[Result "1/2-1/2"]
[Round "10"]
[TimeControl "180+2"]
[Date "2023.05.03"]
[WhiteClock "0:00:00"]
[BlackClock "0:00:00"]

1. d4 {[%clk 0:00:01]}  Nf6 {[%clk 0:00:01]} 2. c4 {[%clk 0:00:01]}  g6 {[%clk 0:00:01]} 3. Nc3 {[%clk 0:00:01]}  Bg7 {[%clk 0:00:01]} 4. e4 {[%clk 0:00:01]}  d6 {[%clk 0:00:01]} 5. h3 {[%clk 0:00:01]}  O-O {[%clk 0:00:01]} 6. Be3 {[%clk 0:00:01]}  Nbd7 {[%clk 0:00:01]} 7. g4 {[%clk 0:00:01]}  e5 {[%clk 0:00:01]} 8. d5 {[%clk 0:00:01]}  h5 {[%clk 0:00:01]} 9. f3 {[%clk 0:00:01]}  b6 {[%clk 0:00:01]} 10. Qd2 {[%clk 0:00:01]}  Nc5 {[%clk 0:00:01]} 11. O-O-O {[%clk 0:00:01]}  a5 {[%clk 0:00:01]} 12. Nge2 {[%clk 0:00:01]}  a4 {[%clk 0:00:01]} 13. Kb1 {[%clk 0:00:01]}  Bd7 {[%clk 0:00:01]} 14. Nc1 {[%clk 0:00:01]}  Qc8 {[%clk 0:00:01]} 15. Nd3 {[%clk 0:00:01]}  Qa6 {[%clk 0:00:01]} 16. Nb4 {[%clk 0:00:01]}  Qa5 {[%clk 0:00:01]} 17. Nc2 {[%clk 0:00:01]}  a3 {[%clk 0:00:01]} 18. b4 {[%clk 0:00:01]}  Qa6 {[%clk 0:00:01]} 19. bxc5 {[%clk 0:00:01]}  bxc5 {[%clk 0:00:01]} 20. Ka1 {[%clk 0:00:01]}  Rfb8 {[%clk 0:00:01]} 21. Nb5 {[%clk 0:00:01]}  Ne8 {[%clk 0:00:01]} 22. gxh5 {[%clk 0:00:01]}  f5 {[%clk 0:00:01]} 23. Bh6 {[%clk 0:00:01]}  Bf6 {[%clk 0:00:01]} 24. exf5 {[%clk 0:00:00]}  e4+ {[%clk 0:00:01]} 25. Nbd4 {[%clk 0:00:00]}  cxd4 {[%clk 0:00:01]} 26. Nxd4 {[%clk 0:00:00]}  Rb2 {[%clk 0:00:01]} 27. Qc3 {[%clk 0:00:00]}  Qa4 {[%clk 0:00:00]} 28. Rc1 {[%clk 0:00:00]}  exf3 {[%clk 0:00:00]} 29. Bd3 {[%clk 0:00:00]}  Qa7 {[%clk 0:00:00]} 30. Be3 {[%clk 0:00:00]}  Qb7 {[%clk 0:00:00]} 31. Rhg1 {[%clk 0:00:00]}  Be5 {[%clk 0:00:00]} 32. Rxg6+ {[%clk 0:00:00]}  Kh8 {[%clk 0:00:00]} 33. Rh6+ {[%clk 0:00:00]}  Kg8 {[%clk 0:00:00]} 34. Rg6+ {[%clk 0:00:00]}  Kh8 {[%clk 0:00:00]} 35. Rgg1 {[%clk 0:00:00]}  Rb8 {[%clk 0:00:00]} 36. f6 {[%clk 0:00:00]}  Nxf6 {[%clk 0:00:00]} 37. Bg5 {[%clk 0:00:00]}  Qb6 {[%clk 0:00:00]} 38. Be3 {[%clk 0:00:00]}  Qb4 {[%clk 0:00:00]} 39. Qxb4 {[%clk 0:00:00]}  R8xb4 {[%clk 0:00:00]} 40. Rb1 {[%clk 0:00:00]}  Rxb1+ {[%clk 0:00:00]} 41. Rxb1 {[%clk 0:00:00]}  Rxb1+ {[%clk 0:00:00]} 42. Kxb1 {[%clk 0:00:00]}  Bxh3 {[%clk 0:00:00]} 43. Nxf3 {[%clk 0:00:00]}  Bg4 {[%clk 0:00:00]} 44. Nxe5 {[%clk 0:00:00]}  dxe5 {[%clk 0:00:00]} 45. Kc2 {[%clk 0:00:00]}  Bxh5 {[%clk 0:00:00]} 46. Kb3 {[%clk 0:00:00]}  e4 {[%clk 0:00:00]} 47. Bc2 {[%clk 0:00:00]}  Bf3 {[%clk 0:00:00]} 48. Bd4 {[%clk 0:00:00]}  Kg7 {[%clk 0:00:00]} 49. Kxa3 {[%clk 0:00:00]}  Kf7 {[%clk 0:00:00]} 50. Bxf6 {[%clk 0:00:00]}  Kxf6 {[%clk 0:00:00]} 51. Kb3 {[%clk 0:00:00]}  Ke5 {[%clk 0:00:00]} 52. Kc3 {[%clk 0:00:00]}  e3 {[%clk 0:00:00]} 53. Bd3 {[%clk 0:00:00]}  Kd6 {[%clk 0:00:00]} 54. Kc2 {[%clk 0:00:00]}  Kc5 {[%clk 0:00:00]} 55. a4 {[%clk 0:00:00]}  e2 {[%clk 0:00:00]} 56. Kd2 {[%clk 0:00:00]}  c6 {[%clk 0:00:00]} 57. dxc6 {[%clk 0:00:00]}  Kxc6 {[%clk 0:00:00]} 58. Bxe2 {[%clk 0:00:00]}  Be4 {[%clk 0:00:00]} 59. Kc3 {[%clk 0:00:00]}  Kc5 {[%clk 0:00:00]} 60. Bd3 {[%clk 0:00:00]}  Bb7 {[%clk 0:00:00]} 61. a5 {[%clk 0:00:00]}  Ba6 {[%clk 0:00:00]} 62. Bc2 {[%clk 0:00:00]}  Bxc4 {[%clk 0:00:00]} 63. Bb3 {[%clk 0:00:00]}  Bxb3 {[%clk 0:00:00]} 64. Kxb3 {[%clk 0:00:00]}  Kb5 {[%clk 0:00:00]} 65. a6 {[%clk 0:00:00]}  Kxa6 {[%clk 0:00:00]} 1/2-1/2


[Site "https://www.chess.com"]

[Event "Titled Tuesday Blitz May 2 Early 2023"]
[White "Larina, Maria"]
[Black "Pasti, Aron"]
[WhiteFideId "24113182"]
[BlackFideId "785857"]
[WhiteElo "1848"]
[BlackElo "2173"]
[Result "0-1"]
[Round "10"]
[TimeControl "180+2"]
[Date "2023.05.03"]
[WhiteClock "0:00:00"]
[BlackClock "0:00:00"]

1. e4 {[%clk 0:00:01]}  e5 {[%clk 0:00:01]} 2. Nf3 {[%clk 0:00:01]}  Nc6 {[%clk 0:00:01]} 3. Nc3 {[%clk 0:00:01]}  Nf6 {[%clk 0:00:01]} 4. Bb5 {[%clk 0:00:01]}  Bc5 {[%clk 0:00:01]} 5. O-O {[%clk 0:00:01]}  d6 {[%clk 0:00:01]} 6. d4 {[%clk 0:00:01]}  exd4 {[%clk 0:00:01]} 7. Nxd4 {[%clk 0:00:01]}  Bd7 {[%clk 0:00:01]} 8. Nf5 {[%clk 0:00:01]}  O-O {[%clk 0:00:01]} 9. Bg5 {[%clk 0:00:01]}  h6 {[%clk 0:00:01]} 10. Bh4 {[%clk 0:00:01]}  a6 {[%clk 0:00:01]} 11. Bd3 {[%clk 0:00:01]}  Bxf5 {[%clk 0:00:01]} 12. exf5 {[%clk 0:00:01]}  Ne5 {[%clk 0:00:01]} 13. Ne4 {[%clk 0:00:01]}  Ned7 {[%clk 0:00:01]} 14. Nxc5 {[%clk 0:00:01]}  Nxc5 {[%clk 0:00:01]} 15. Bc4 {[%clk 0:00:00]}  Ncd7 {[%clk 0:00:01]} 16. Re1 {[%clk 0:00:00]}  Re8 {[%clk 0:00:01]} 17. Qf3 {[%clk 0:00:00]}  Ne5 {[%clk 0:00:01]} 18. Qb3 {[%clk 0:00:00]}  Nxc4 {[%clk 0:00:01]} 19. Qxc4 {[%clk 0:00:00]}  Re5 {[%clk 0:00:00]} 20. Qf4 {[%clk 0:00:00]}  Qe7 {[%clk 0:00:00]} 21. f3 {[%clk 0:00:00]}  Re8 {[%clk 0:00:00]} 22. Re4 {[%clk 0:00:00]}  Rxe4 {[%clk 0:00:00]} 23. fxe4 {[%clk 0:00:00]}  Qxe4 {[%clk 0:00:00]} 24. Qxe4 {[%clk 0:00:00]}  Rxe4 {[%clk 0:00:00]} 25. Bxf6 {[%clk 0:00:00]}  gxf6 {[%clk 0:00:00]} 26. Kf2 {[%clk 0:00:00]}  Rf4+ {[%clk 0:00:00]} 27. Ke3 {[%clk 0:00:00]}  Rxf5 {[%clk 0:00:00]} 28. Rd1 {[%clk 0:00:00]}  Rc5 {[%clk 0:00:00]} 29. c3 {[%clk 0:00:00]}  Rb5 {[%clk 0:00:00]} 30. b3 {[%clk 0:00:00]}  Kf8 {[%clk 0:00:00]} 31. c4 {[%clk 0:00:00]}  Re5+ {[%clk 0:00:00]} 32. Kf3 {[%clk 0:00:00]}  Ke7 {[%clk 0:00:00]} 33. Rd4 {[%clk 0:00:00]}  Ke6 {[%clk 0:00:00]} 34. Rh4 {[%clk 0:00:00]}  h5 {[%clk 0:00:00]} 35. g4 {[%clk 0:00:00]}  hxg4+ {[%clk 0:00:00]} 36. Rxg4 {[%clk 0:00:00]}  Rf5+ {[%clk 0:00:00]} 37. Ke3 {[%clk 0:00:00]}  Rh5 {[%clk 0:00:00]} 38. h4 {[%clk 0:00:00]}  f5 {[%clk 0:00:00]} 39. Rf4 {[%clk 0:00:00]}  Ke5 {[%clk 0:00:00]} 40. Kf3 {[%clk 0:00:00]}  c6 {[%clk 0:00:00]} 41. Kg3 {[%clk 0:00:00]}  Rh8 {[%clk 0:00:00]} 42. Rf1 {[%clk 0:00:00]}  d5 {[%clk 0:00:00]} 43. cxd5 {[%clk 0:00:00]}  cxd5 {[%clk 0:00:00]} 44. Re1+ {[%clk 0:00:00]}  Kf6 {[%clk 0:00:00]} 45. Rd1 {[%clk 0:00:00]}  f4+ {[%clk 0:00:00]} 46. Kxf4 {[%clk 0:00:00]}  Rxh4+ {[%clk 0:00:00]} 47. Ke3 {[%clk 0:00:00]}  Ke5 {[%clk 0:00:00]} 48. Rg1 {[%clk 0:00:00]}  d4+ {[%clk 0:00:00]} 49. Kd3 {[%clk 0:00:00]}  Rh3+ {[%clk 0:00:00]} 50. Kc4 {[%clk 0:00:00]}  Rc3+ {[%clk 0:00:00]} 51. Kb4 {[%clk 0:00:00]}  Rc2 {[%clk 0:00:00]} 52. a4 {[%clk 0:00:00]}  d3 {[%clk 0:00:00]} 53. Rg5+ {[%clk 0:00:00]}  Kf4 {[%clk 0:00:00]} 54. Rd5 {[%clk 0:00:00]}  Ke4 {[%clk 0:00:00]} 55. Rd7 {[%clk 0:00:00]}  d2 {[%clk 0:00:00]} 56. Ka5 {[%clk 0:00:00]}  Rc5+ {[%clk 0:00:00]} 57. Kb6 {[%clk 0:00:00]}  Rd5 {[%clk 0:00:00]} 58. Re7+ {[%clk 0:00:00]}  Kd3 {[%clk 0:00:00]} 59. Kxb7 {[%clk 0:00:00]}  d1=Q {[%clk 0:00:00]} 60. Kxa6 {[%clk 0:00:00]}  Qxb3 {[%clk 0:00:00]} 61. a5 {[%clk 0:00:00]}  Qb5+ {[%clk 0:00:00]} 62. Ka7 {[%clk 0:00:00]}  Qxa5+ {[%clk 0:00:00]} 63. Kb7 {[%clk 0:00:00]}  Rb5+ {[%clk 0:00:00]} 64. Kc6 {[%clk 0:00:00]}  Rb6+ {[%clk 0:00:00]} 65. Kc7 {[%clk 0:00:00]}  Qa7+ {[%clk 0:00:00]} 66. Kc8 {[%clk 0:00:00]}  Rb8# {[%clk 0:00:00]} 0-1


[Site "https://www.chess.com"]

[Event "Titled Tuesday Blitz May 2 Early 2023"]
[White "Elissalt Cardenas, Hector"]
[Black "Smietanska, Wiktoria"]
[WhiteFideId "3500632"]
[BlackFideId "21869359"]
[WhiteElo "2202"]
[BlackElo "1995"]
[Result "0-1"]
[Round "10"]
[TimeControl "180+2"]
[Date "2023.05.03"]
[WhiteClock "0:00:00"]
[BlackClock "0:00:00"]

1. c4 {[%clk 0:00:01]}  Nf6 {[%clk 0:00:01]} 2. Nc3 {[%clk 0:00:01]}  g6 {[%clk 0:00:01]} 3. d4 {[%clk 0:00:01]}  Bg7 {[%clk 0:00:01]} 4. e4 {[%clk 0:00:01]}  d6 {[%clk 0:00:01]} 5. h3 {[%clk 0:00:01]}  O-O {[%clk 0:00:01]} 6. Be3 {[%clk 0:00:01]}  e5 {[%clk 0:00:01]} 7. d5 {[%clk 0:00:01]}  Ne8 {[%clk 0:00:01]} 8. g4 {[%clk 0:00:01]}  f5 {[%clk 0:00:01]} 9. exf5 {[%clk 0:00:01]}  gxf5 {[%clk 0:00:01]} 10. gxf5 {[%clk 0:00:01]}  Bxf5 {[%clk 0:00:01]} 11. Nge2 {[%clk 0:00:01]}  Qh4 {[%clk 0:00:01]} 12. Ng3 {[%clk 0:00:01]}  Bg6 {[%clk 0:00:01]} 13. Bd3 {[%clk 0:00:01]}  Bxd3 {[%clk 0:00:01]} 14. Qxd3 {[%clk 0:00:01]}  Nd7 {[%clk 0:00:01]} 15. Nf5 {[%clk 0:00:01]}  Qf6 {[%clk 0:00:01]} 16. Nxg7 {[%clk 0:00:01]}  Nxg7 {[%clk 0:00:01]} 17. O-O-O {[%clk 0:00:01]}  Qf5 {[%clk 0:00:01]} 18. Ne4 {[%clk 0:00:01]}  Nf6 {[%clk 0:00:01]} 19. Nxf6+ {[%clk 0:00:01]}  Rxf6 {[%clk 0:00:01]} 20. Rhg1 {[%clk 0:00:01]}  Qxd3 {[%clk 0:00:01]} 21. Rxd3 {[%clk 0:00:01]}  Kf7 {[%clk 0:00:01]} 22. Rb3 {[%clk 0:00:01]}  b6 {[%clk 0:00:01]} 23. Ra3 {[%clk 0:00:01]}  a5 {[%clk 0:00:00]} 24. Kd2 {[%clk 0:00:01]}  Nf5 {[%clk 0:00:00]} 25. Ke2 {[%clk 0:00:01]}  Nxe3 {[%clk 0:00:00]} 26. Rxe3 {[%clk 0:00:00]}  Rf8 {[%clk 0:00:00]} 27. Reg3 {[%clk 0:00:00]}  Ke8 {[%clk 0:00:00]} 28. R1g2 {[%clk 0:00:00]}  Rf4 {[%clk 0:00:00]} 29. b3 {[%clk 0:00:00]}  R4f7 {[%clk 0:00:00]} 30. h4 {[%clk 0:00:00]}  h5 {[%clk 0:00:00]} 31. Rg5 {[%clk 0:00:00]}  Rh7 {[%clk 0:00:00]} 32. Ke3 {[%clk 0:00:00]}  Rf4 {[%clk 0:00:00]} 33. Rg7 {[%clk 0:00:00]}  Rxg7 {[%clk 0:00:00]} 34. Rxg7 {[%clk 0:00:00]}  Kd8 {[%clk 0:00:00]} 35. Rh7 {[%clk 0:00:00]}  Rxh4 {[%clk 0:00:00]} 36. f3 {[%clk 0:00:00]}  Rh2 {[%clk 0:00:00]} 37. Ke4 {[%clk 0:00:00]}  Rxa2 {[%clk 0:00:00]} 38. Kf5 {[%clk 0:00:00]}  Ra3 {[%clk 0:00:00]} 39. Ke6 {[%clk 0:00:00]}  Kc8 {[%clk 0:00:00]} 40. Rh8+ {[%clk 0:00:00]}  Kb7 {[%clk 0:00:00]} 41. Kd7 {[%clk 0:00:00]}  Rxb3 {[%clk 0:00:00]} 42. Rc8 {[%clk 0:00:00]}  a4 {[%clk 0:00:00]} 43. Rxc7+ {[%clk 0:00:00]}  Ka6 {[%clk 0:00:00]} 44. Rc8 {[%clk 0:00:00]}  Ka5 {[%clk 0:00:00]} 45. Kxd6 {[%clk 0:00:00]}  a3 {[%clk 0:00:00]} 46. Ra8+ {[%clk 0:00:00]}  Kb4 {[%clk 0:00:00]} 47. Kxe5 {[%clk 0:00:00]}  a2 {[%clk 0:00:00]} 48. d6 {[%clk 0:00:00]}  Ra3 {[%clk 0:00:00]} 0-1


[Site "https://www.chess.com"]

[Event "Titled Tuesday Blitz May 2 Early 2023"]
[White "Barria Santos, Jose Guilherme"]
[Black "Quirke, Jeffrey"]
[WhiteFideId "1939300"]
[BlackFideId "2013029"]
[WhiteElo "2266"]
[BlackElo "2007"]
[Result "0-1"]
[Round "10"]
[TimeControl "180+2"]
[Date "2023.05.03"]
[WhiteClock "0:00:00"]
[BlackClock "0:00:00"]

1. d4 {[%clk 0:00:01]}  e6 {[%clk 0:00:01]} 2. c4 {[%clk 0:00:01]}  b6 {[%clk 0:00:01]} 3. Nf3 {[%clk 0:00:01]}  Bb7 {[%clk 0:00:01]} 4. Nc3 {[%clk 0:00:01]}  Bb4 {[%clk 0:00:01]} 5. Qc2 {[%clk 0:00:01]}  f5 {[%clk 0:00:01]} 6. Bg5 {[%clk 0:00:01]}  Nf6 {[%clk 0:00:01]} 7. e3 {[%clk 0:00:01]}  h6 {[%clk 0:00:01]} 8. Bxf6 {[%clk 0:00:01]}  Qxf6 {[%clk 0:00:01]} 9. Be2 {[%clk 0:00:01]}  O-O {[%clk 0:00:01]} 10. O-O-O {[%clk 0:00:01]}  Bxc3 {[%clk 0:00:01]} 11. Qxc3 {[%clk 0:00:01]}  d6 {[%clk 0:00:01]} 12. h4 {[%clk 0:00:01]}  Nd7 {[%clk 0:00:01]} 13. Nd2 {[%clk 0:00:01]}  c5 {[%clk 0:00:01]} 14. Rdg1 {[%clk 0:00:01]}  Rac8 {[%clk 0:00:01]} 15. Kb1 {[%clk 0:00:01]}  cxd4 {[%clk 0:00:01]} 16. Qxd4 {[%clk 0:00:01]}  Qxd4 {[%clk 0:00:01]} 17. exd4 {[%clk 0:00:01]}  e5 {[%clk 0:00:01]} 18. Nb3 {[%clk 0:00:01]}  Nf6 {[%clk 0:00:01]} 19. f3 {[%clk 0:00:01]}  e4 {[%clk 0:00:00]} 20. Rc1 {[%clk 0:00:01]}  Nh5 {[%clk 0:00:00]} 21. d5 {[%clk 0:00:00]}  Ng3 {[%clk 0:00:00]} 22. Rhe1 {[%clk 0:00:00]}  Ba6 {[%clk 0:00:00]} 23. fxe4 {[%clk 0:00:00]}  fxe4 {[%clk 0:00:00]} 24. Nd4 {[%clk 0:00:00]}  Rf2 {[%clk 0:00:00]} 25. Bg4 {[%clk 0:00:00]}  Rxc4 {[%clk 0:00:00]} 26. Nc6 {[%clk 0:00:00]}  Rxc1+ {[%clk 0:00:00]} 27. Rxc1 {[%clk 0:00:00]}  Bd3+ {[%clk 0:00:00]} 28. Ka1 {[%clk 0:00:00]}  e3 {[%clk 0:00:00]} 29. Ne7+ {[%clk 0:00:00]}  Kh7 {[%clk 0:00:00]} 30. h5 {[%clk 0:00:00]}  e2 {[%clk 0:00:00]} 31. Be6 {[%clk 0:00:00]}  Rf1 {[%clk 0:00:00]} 32. Bg8+ {[%clk 0:00:00]}  Kh8 {[%clk 0:00:00]} 33. a3 {[%clk 0:00:00]}  Rxc1+ {[%clk 0:00:00]} 34. Ka2 {[%clk 0:00:00]}  e1=Q {[%clk 0:00:00]} 35. Be6 {[%clk 0:00:00]}  Bc4+ {[%clk 0:00:00]} 36. b3 {[%clk 0:00:00]}  Qd2# {[%clk 0:00:00]} 0-1


[Site "https://www.chess.com"]

[Event "Titled Tuesday Blitz May 2 Early 2023"]
[White "Duda, Jan-Krzysztof"]
[Black "Shimanov, Aleksandr"]
[WhiteFideId "1170546"]
[BlackFideId "4198603"]
[WhiteElo "2790"]
[BlackElo "2631"]
[Result "1-0"]
[Round "11"]
[TimeControl "180+2"]
[Date "2023.05.03"]
[WhiteClock "0:00:00"]
[BlackClock "0:00:00"]

1. d4 {[%clk 0:00:01]}  d5 {[%clk 0:00:01]} 2. c4 {[%clk 0:00:01]}  e6 {[%clk 0:00:01]} 3. Nf3 {[%clk 0:00:01]}  Nf6 {[%clk 0:00:01]} 4. g3 {[%clk 0:00:01]}  dxc4 {[%clk 0:00:01]} 5. Bg2 {[%clk 0:00:01]}  Nbd7 {[%clk 0:00:01]} 6. O-O {[%clk 0:00:01]}  c6 {[%clk 0:00:01]} 7. a4 {[%clk 0:00:01]}  a5 {[%clk 0:00:01]} 8. Qc2 {[%clk 0:00:01]}  Nd5 {[%clk 0:00:01]} 9. Qxc4 {[%clk 0:00:01]}  Be7 {[%clk 0:00:01]} 10. Rd1 {[%clk 0:00:01]}  Nb4 {[%clk 0:00:01]} 11. b3 {[%clk 0:00:01]}  b6 {[%clk 0:00:01]} 12. Qc3 {[%clk 0:00:01]}  Ba6 {[%clk 0:00:01]} 13. e4 {[%clk 0:00:01]}  O-O {[%clk 0:00:01]} 14. Bb2 {[%clk 0:00:01]}  Bf6 {[%clk 0:00:01]} 15. Na3 {[%clk 0:00:01]}  Rc8 {[%clk 0:00:01]} 16. Nc4 {[%clk 0:00:01]}  Qc7 {[%clk 0:00:01]} 17. h4 {[%clk 0:00:01]}  Rfd8 {[%clk 0:00:01]} 18. e5 {[%clk 0:00:00]}  Be7 {[%clk 0:00:01]} 19. Ng5 {[%clk 0:00:00]}  b5 {[%clk 0:00:01]} 20. Nd6 {[%clk 0:00:00]}  Bxd6 {[%clk 0:00:00]} 21. exd6 {[%clk 0:00:00]}  Qxd6 {[%clk 0:00:00]} 22. d5 {[%clk 0:00:00]}  e5 {[%clk 0:00:00]} 23. dxc6 {[%clk 0:00:00]}  Qe7 {[%clk 0:00:00]} 24. axb5 {[%clk 0:00:00]}  Bxb5 {[%clk 0:00:00]} 25. c7 {[%clk 0:00:00]}  Re8 {[%clk 0:00:00]} 26. Rxa5 {[%clk 0:00:00]}  Bc6 {[%clk 0:00:00]} 27. Bxc6 {[%clk 0:00:00]}  Rxc7 {[%clk 0:00:00]} 28. Rxd7 {[%clk 0:00:00]}  Rxd7 {[%clk 0:00:00]} 29. Bxd7 {[%clk 0:00:00]}  Qxd7 {[%clk 0:00:00]} 30. Qxb4 {[%clk 0:00:00]}  Qd1+ {[%clk 0:00:00]} 31. Kg2 {[%clk 0:00:00]}  h6 {[%clk 0:00:00]} 32. Rxe5 {[%clk 0:00:00]}  Rxe5 {[%clk 0:00:00]} 33. Qb8+ {[%clk 0:00:00]} 1-0


[Site "https://www.chess.com"]

[Event "Titled Tuesday Blitz May 2 Early 2023"]
[White "Ter-Sahakyan, Samvel"]
[Black "Suyarov, Mukhammadzokhid"]
[WhiteFideId "13302531"]
[BlackFideId "14210495"]
[WhiteElo "2566"]
[BlackElo "2361"]
[Result "1/2-1/2"]
[Round "11"]
[TimeControl "180+2"]
[Date "2023.05.03"]
[WhiteClock "0:00:00"]
[BlackClock "0:00:00"]

1. d4 {[%clk 0:00:01]}  e6 {[%clk 0:00:01]} 2. c4 {[%clk 0:00:01]}  b6 {[%clk 0:00:01]} 3. a3 {[%clk 0:00:01]}  Nf6 {[%clk 0:00:01]} 4. Nc3 {[%clk 0:00:01]}  d5 {[%clk 0:00:01]} 5. cxd5 {[%clk 0:00:01]}  Nxd5 {[%clk 0:00:01]} 6. Nf3 {[%clk 0:00:01]}  Bb7 {[%clk 0:00:01]} 7. Qc2 {[%clk 0:00:01]}  Be7 {[%clk 0:00:01]} 8. e4 {[%clk 0:00:01]}  Nxc3 {[%clk 0:00:01]} 9. bxc3 {[%clk 0:00:01]}  c5 {[%clk 0:00:01]} 10. Bd3 {[%clk 0:00:01]}  cxd4 {[%clk 0:00:01]} 11. cxd4 {[%clk 0:00:01]}  Nd7 {[%clk 0:00:01]} 12. O-O {[%clk 0:00:01]}  O-O {[%clk 0:00:01]} 13. Qe2 {[%clk 0:00:01]}  a6 {[%clk 0:00:01]} 14. a4 {[%clk 0:00:01]}  Nf6 {[%clk 0:00:01]} 15. Bb2 {[%clk 0:00:01]}  Re8 {[%clk 0:00:01]} 16. Rfe1 {[%clk 0:00:01]}  Bf8 {[%clk 0:00:01]} 17. h3 {[%clk 0:00:01]}  Bb4 {[%clk 0:00:01]} 18. Red1 {[%clk 0:00:01]}  a5 {[%clk 0:00:01]} 19. Ne5 {[%clk 0:00:01]}  Rc8 {[%clk 0:00:01]} 20. Rac1 {[%clk 0:00:01]}  Qe7 {[%clk 0:00:01]} 21. f3 {[%clk 0:00:01]}  Ba3 {[%clk 0:00:01]} 22. Bb5 {[%clk 0:00:01]}  Red8 {[%clk 0:00:01]} 23. Rxc8 {[%clk 0:00:00]}  Rxc8 {[%clk 0:00:01]} 24. Bxa3 {[%clk 0:00:01]}  Qxa3 {[%clk 0:00:01]} 25. Nc4 {[%clk 0:00:01]}  Qb3 {[%clk 0:00:01]} 26. Qd3 {[%clk 0:00:00]}  Qa2 {[%clk 0:00:01]} 27. Rd2 {[%clk 0:00:00]}  Qa1+ {[%clk 0:00:01]} 28. Rd1 {[%clk 0:00:00]}  Qa2 {[%clk 0:00:01]} 29. Rd2 {[%clk 0:00:00]}  Qa1+ {[%clk 0:00:01]} 30. Kh2 {[%clk 0:00:00]}  h5 {[%clk 0:00:00]} 31. Rd1 {[%clk 0:00:00]}  Qa2 {[%clk 0:00:00]} 32. Rc1 {[%clk 0:00:00]}  h4 {[%clk 0:00:00]} 33. Qc2 {[%clk 0:00:00]}  Qxc2 {[%clk 0:00:00]} 34. Rxc2 {[%clk 0:00:00]}  Rc7 {[%clk 0:00:00]} 35. Rd2 {[%clk 0:00:00]}  Bc6 {[%clk 0:00:00]} 36. Nd6 {[%clk 0:00:00]}  Bxb5 {[%clk 0:00:00]} 37. Nxb5 {[%clk 0:00:00]}  Rc1 {[%clk 0:00:00]} 38. g4 {[%clk 0:00:00]}  hxg3+ {[%clk 0:00:00]} 39. Kxg3 {[%clk 0:00:00]}  Nh5+ {[%clk 0:00:00]} 40. Kf2 {[%clk 0:00:00]}  Nf4 {[%clk 0:00:00]} 41. d5 {[%clk 0:00:00]}  Rc8 {[%clk 0:00:00]} 42. d6 {[%clk 0:00:00]}  Rd8 {[%clk 0:00:00]} 43. d7 {[%clk 0:00:00]}  Ng6 {[%clk 0:00:00]} 44. Rd6 {[%clk 0:00:00]}  Ne5 {[%clk 0:00:00]} 45. f4 {[%clk 0:00:00]}  Ng6 {[%clk 0:00:00]} 46. Rxb6 {[%clk 0:00:00]}  Rxd7 {[%clk 0:00:00]} 47. f5 {[%clk 0:00:00]}  exf5 {[%clk 0:00:00]} 48. exf5 {[%clk 0:00:00]}  Ne5 {[%clk 0:00:00]} 49. Ra6 {[%clk 0:00:00]}  Nc4 {[%clk 0:00:00]} 50. Kf3 {[%clk 0:00:00]}  Rd3+ {[%clk 0:00:00]} 51. Ke4 {[%clk 0:00:00]}  Rxh3 {[%clk 0:00:00]} 52. Kd5 {[%clk 0:00:00]}  Rh4 {[%clk 0:00:00]} 53. Kc5 {[%clk 0:00:00]}  Rf4 {[%clk 0:00:00]} 54. Nd4 {[%clk 0:00:00]}  Ne3 {[%clk 0:00:00]} 55. f6 {[%clk 0:00:00]}  Rxf6 {[%clk 0:00:00]} 56. Rxf6 {[%clk 0:00:00]}  gxf6 {[%clk 0:00:00]} 57. Nb3 {[%clk 0:00:00]}  f5 {[%clk 0:00:00]} 58. Kd4 {[%clk 0:00:00]}  f4 {[%clk 0:00:00]} 59. Nxa5 {[%clk 0:00:00]}  f5 {[%clk 0:00:00]} 60. Kd3 {[%clk 0:00:00]}  Nd5 {[%clk 0:00:00]} 61. Nc4 {[%clk 0:00:00]}  Kf7 {[%clk 0:00:00]} 62. a5 {[%clk 0:00:00]}  Ke6 {[%clk 0:00:00]} 63. a6 {[%clk 0:00:00]}  Nb4+ {[%clk 0:00:00]} 64. Ke2 {[%clk 0:00:00]}  Nxa6 {[%clk 0:00:00]} 65. Kf3 {[%clk 0:00:00]}  Kd5 {[%clk 0:00:00]} 66. Nd2 {[%clk 0:00:00]}  Ke5 {[%clk 0:00:00]} 67. Nc4+ {[%clk 0:00:00]}  Kf6 {[%clk 0:00:00]} 68. Kxf4 {[%clk 0:00:00]}  Nc5 {[%clk 0:00:00]} 69. Ne3 {[%clk 0:00:00]}  Ne6+ {[%clk 0:00:00]} 70. Kf3 {[%clk 0:00:00]}  f4 {[%clk 0:00:00]} 71. Nd5+ {[%clk 0:00:00]}  Ke5 {[%clk 0:00:00]} 72. Nxf4 {[%clk 0:00:00]} 1/2-1/2


[Site "https://www.chess.com"]